fUST/lending_fUST_20250104
["ID","MTS","AMOUNT","RATE_DAILY","PERIOD"]
[347588680,1735931443355,-500.0,0.00019178,2]
[347588681,1735931443365,-500.0,0.00019178,2]
[347588682,1735931443374,-500.0,0.00019178,2]
[347588683,1735931443385,-500.0,0.00019178,2]
[347588684,1735931443394,-500.0,0.00019178,2]
[347588685,1735931443404,-454.95577483,0.00019178,2]
[347588686,1735931443413,-1067.87,0.00019178,2]
[347588687,1735931443423,-634.0917962,0.00019178,2]
[347588688,1735931443433,-500.0,0.00019178,2]
[347588689,1735931443442,-500.0,0.00019178,2]
[347588690,1735931443452,-500.6479452,0.00019178,2]
[347588691,1735931443461,-503.2649003,0.00019178,2]
[347588692,1735931443470,-500.83373591,0.00019178,2]
[347588693,1735931443479,-280.13927571,0.00019178,2]
[347588694,1735931443489,-500.0,0.00019178,2]
[347588695,1735931443497,-500.0,0.00019178,2]
[347588696,1735931443507,-500.0,0.00019178,2]
[347588697,1735931443516,-500.0,0.00019178,2]
[347588698,1735931443526,-500.0,0.00019178,2]
[347588699,1735931443535,-500.0,0.00019178,2]
[347588700,1735931443544,-500.0,0.00019178,2]
[347588701,1735931443554,-512.49163069,0.00019178,2]
[347588702,1735931443563,-502.51664137,0.00019178,2]
[347588703,1735931443572,-632.84,0.00019178,2]
[347588704,1735931443581,-500.0,0.00019178,2]
[347588705,1735931443591,-500.0,0.00019178,2]
[347588706,1735931443600,-3782.85,0.00019178,2]
[347588707,1735931443610,-500.0,0.00019178,2]
[347588708,1735931443630,-500.0,0.00019178,2]
[347588709,1735931443641,-500.0,0.00019178,2]
[347588710,1735931443653,-500.0,0.00019178,2]
[347588711,1735931443662,-500.0,0.00019178,2]
[347588712,1735931443676,-500.0,0.00019178,2]
[347588713,1735931443686,-500.0,0.00019178,2]
[347588714,1735931443695,-501.281296,0.00019178,2]
[347588715,1735931443704,-502.2324655,0.00019178,2]
[347588716,1735931443717,-500.0,0.00019178,2]
[347588717,1735931443726,-500.0,0.00019178,2]
[347588718,1735931443736,-448.56105154,0.00019178,2]
[347588719,1735931443745,-203.04739486,0.00019178,2]
[347588720,1735931443754,-501.50596107,0.00019178,2]
[347588721,1735931443764,-500.0,0.00019178,2]
[347588722,1735931443773,-500.0,0.00019178,2]
[347588723,1735931443783,-500.0,0.00019178,2]
[347588724,1735931443792,-503.6928797,0.00019178,2]
[347588725,1735931443803,-501.71591122,0.00019178,2]
[347588726,1735931443812,-500.0,0.00019178,2]
[347588727,1735931443822,-500.0,0.00019178,2]
[347588728,1735931443831,-501.07647486,0.00019178,2]
[347588729,1735931443841,-988.25,0.00019178,2]
[347588730,1735931443852,-500.0,0.00019178,2]
[347588731,1735931443861,-500.0,0.00019178,2]
[347588732,1735931443872,-500.0,0.00019178,2]
[347588733,1735931443881,-501.89458484,0.00019178,2]
[347588734,1735931443890,-500.0,0.00019178,2]
[347588735,1735931443899,-500.0,0.00019178,2]
[347588736,1735931443909,-500.0,0.00019178,2]
[347588737,1735931443919,-502.62508538,0.00019178,2]
[347588738,1735931443928,-501.68152722,0.00019178,2]
[347588739,1735931443938,-500.0,0.00019178,2]
[347588740,1735931443947,-500.0,0.00019178,2]
[347588741,1735931443956,-500.0,0.00019178,2]
[347588742,1735931443965,-500.0,0.00019178,2]
[347588743,1735931443974,-500.0,0.00019178,2]
[347588744,1735931443984,-536.13,0.00019178,2]
[347588745,1735931443994,-500.0,0.00019178,2]
[347588746,1735931444003,-245.9979129,0.00019178,2]
[347588747,1735931444012,-2701.22,0.00019178,2]
[347588748,1735931444021,-500.0,0.00019178,2]
[347588749,1735931444031,-500.0,0.00019178,2]
[347588750,1735931444041,-37250.78,0.00019178,2]
[347588751,1735931444050,-501.2980998,0.00019178,2]
[347588752,1735931444062,-500.0,0.00019178,2]
[347588753,1735931444071,-500.0,0.00019178,2]
[347588754,1735931444081,-995.2,0.00019178,2]
[347588755,1735931444091,-275.20620864,0.00019178,2]
[347588756,1735931444101,-500.0,0.00019178,2]
[347588757,1735931444110,-4404.56,0.00019178,2]
[347588758,1735931444121,-500.0,0.00019178,2]
[347588759,1735931444131,-500.0,0.00019178,2]
[347588760,1735931444141,-500.0,0.00019178,2]
[347588761,1735931444151,-500.0,0.00019178,2]
[347588762,1735931444160,-500.0,0.00019178,2]
[347588763,1735931444169,-500.0,0.00019178,2]
[347588764,1735931444179,-500.0,0.00019178,2]
[347588765,1735931444190,-4249.01,0.00019178,2]
[347588766,1735931444199,-788.45,0.00019178,2]
[347588767,1735931444209,-500.0,0.00019178,2]
[347588768,1735931444219,-506.24115165,0.00019178,2]
[347588769,1735931444228,-500.0,0.00019178,2]
[347588770,1735931444238,-500.0,0.00019178,2]
[347588771,1735931444248,-500.0,0.00019178,2]
[347588772,1735931444257,-500.0,0.00019178,2]
[347588773,1735931444266,-500.0,0.00019178,2]
[347588774,1735931444275,-500.0,0.00019178,2]
[347588775,1735931444285,-500.0,0.00019178,2]
[347588776,1735931444294,-299.38136547,0.00019178,2]
[347588777,1735931444303,-500.0,0.00019178,2]
[347588778,1735931444312,-500.0,0.00019178,2]
[347588779,1735931444322,-500.0,0.00019178,2]
[347588780,1735931444331,-500.0,0.00019178,2]
[347588781,1735931444340,-2201.11,0.00019178,2]
[347588782,1735931444350,-500.0,0.00019178,2]
[347588783,1735931444360,-1297.52,0.00019178,2]
[347588784,1735931444369,-306.07942164,0.00019178,2]
[347588785,1735931444378,-500.0,0.00019178,2]
[347588786,1735931444387,-274.86546911,0.00019178,2]
[347588787,1735931444397,-500.0,0.00019178,2]
[347588788,1735931444406,-500.0,0.00019178,2]
[347588789,1735931444415,-1151.72,0.00019178,2]
[347588790,1735931444424,-500.0,0.00019178,2]
[347588791,1735931444434,-500.0,0.00019178,2]
[347588792,1735931444444,-500.0,0.00019178,2]
[347588793,1735931444453,-2881.96,0.00019178,2]
[347588794,1735931444463,-500.0,0.00019178,2]
[347588795,1735931444472,-500.0,0.00019178,2]
[347588796,1735931444482,-500.0,0.00019178,2]
[347588797,1735931444491,-500.0,0.00019178,2]
[347588798,1735931444501,-500.0,0.00019178,2]
[347588799,1735931444511,-500.0,0.00019178,2]
[347588800,1735931444521,-500.0,0.00019178,2]
[347588801,1735931444530,-239.24897659,0.00019178,2]
[347588802,1735931444546,-649.235055,0.00019178,2]
[347588803,1735931444558,-2954.09796109,0.00019178,2]
[347588804,1735931444570,-404.75567804,0.00019178,2]
[347588805,1735931444581,-3513.05232928,0.00019178,2]
[347588806,1735931444590,-1747.05,0.00019178,2]
[347588807,1735931444600,-1284.09,0.00019178,2]
[347588808,1735931444610,-500.0,0.00019178,2]
[347588809,1735931444619,-500.0,0.00019178,2]
[347588810,1735931444629,-153.13750072,0.00019178,2]
[347588811,1735931445118,-385.45249928,0.00019178,2]
[347588812,1735931445126,-500.0,0.00019178,2]
[347588813,1735931445135,-500.0,0.00019178,2]
[347588814,1735931445144,-1181.35302631,0.00019178,2]
[347588815,1735931445334,-1026.5422485,0.00019178,2]
[347588816,1735931445346,-314.38472519,0.00019178,2]
[347588817,1735931445355,-500.0,0.00019178,2]
[347588818,1735931445364,-500.0,0.00019178,2]
[347588819,1735931445374,-500.0,0.00019178,2]
[347588820,1735931445383,-692.42,0.00019178,2]
[347588821,1735931445393,-1087.44,0.00019178,2]
[347588822,1735931445402,-500.0,0.00019178,2]
[347588823,1735931445411,-816.76,0.00019178,2]
[347588824,1735931445421,-571.03290203,0.00019178,2]
[347588825,1735931445431,-500.0,0.00019178,2]
[347588826,1735931445441,-500.0,0.00019178,2]
[347588827,1735931445450,-500.0,0.00019178,2]
[347588829,1735931445459,-500.0,0.00019178,2]
[347588831,1735931445470,-500.0,0.00019178,2]
[347588833,1735931445479,-500.0,0.00019178,2]
[347588836,1735931445491,-500.0,0.00019178,2]
[347588838,1735931445501,-500.0,0.00019178,2]
[347588840,1735931445511,-503.03967367,0.00019178,2]
[347588842,1735931445521,-1148.92,0.00019178,2]
[347588843,1735931445530,-500.0,0.00019178,2]
[347588846,1735931445540,-500.0,0.00019178,2]
[347588848,1735931445552,-1140.52,0.00019178,2]
[347588850,1735931445562,-500.0,0.00019178,2]
[347588851,1735931445572,-4629.04,0.00019178,2]
[347588852,1735931445581,-1159.09,0.00019178,2]
[347588853,1735931445592,-157.03,0.00019178,2]
[347588855,1735931445602,-3299.10456444,0.000192,2]
[347588856,1735931445612,-153.0,0.000192,2]
[347588858,1735931445622,-153.6400067,0.000192,2]
[347588859,1735931445632,-428.8088492,0.000192,2]
[347588860,1735931445644,-153.0,0.000192,2]
[347588861,1735931445654,-153.0,0.000192,2]
[347588862,1735931445664,-153.0,0.000192,2]
[347588863,1735931445673,-153.0,0.000192,2]
[347588864,1735931445684,-153.6400067,0.000192,2]
[347588865,1735931445694,-153.4315627,0.000192,2]
[347588866,1735931445703,-153.0,0.000192,2]
[347588867,1735931445714,-949.11,0.000193,2]
[347588868,1735931445724,-542.0,0.000193,8]
[347588869,1735931445734,-153.0,0.00019425,2]
[347588870,1735931445744,-153.0,0.00019425,2]
[347588871,1735931445754,-153.0,0.00019425,2]
[347588873,1735931445764,-385.053639,0.00019451,2]
[347588875,1735931445773,-385.053639,0.00019451,2]
[347588877,1735931445782,-500.0,0.00019451,3]
[347588879,1735931445792,-500.0,0.00019451,3]
[347588880,1735931445801,-500.0,0.00019451,3]
[347588882,1735931445810,-500.0,0.00019451,3]
[347588884,1735931445820,-54.05003137,0.00019451,3]
[347588910,1735931804237,155.0,0.00025,120]
[347588915,1735932403622,160.856062,0.00013973,2]
[347588999,1735932637380,-300.0,0.0001574,2]
[347589000,1735932637391,-35072.17739143,0.000159,2]
[347589002,1735932637401,-469.67849662,0.00016,2]
[347589003,1735932637416,-40083.48341149,0.00017,7]
[347589004,1735932637425,-300.0,0.00017285,2]
[347589006,1735932637435,-189.21087549,0.00017983,2]
[347589008,1735932637446,-13954.7833641,0.00017995,2]
[347589010,1735932637455,-500.0,0.00017999,2]
[347589012,1735932637464,-306.27353121,0.00017999,2]
[347589014,1735932637473,-500.0,0.00017999,2]
[347589016,1735932637482,-500.0,0.00017999,2]
[347589019,1735932637491,-500.0,0.00017999,2]
[347589022,1735932637501,-500.0,0.00017999,2]
[347589025,1735932637510,-500.0,0.00017999,2]
[347589028,1735932637522,-500.0,0.00017999,2]
[347589030,1735932637531,-353.37012292,0.00017999,2]
[347589032,1735932637540,-500.0,0.00017999,2]
[347589034,1735932637549,-500.0,0.00017999,2]
[347589037,1735932637558,-500.0,0.00017999,2]
[347589038,1735932637568,-396.13589906,0.00017999,2]
[347589041,1735932637577,-495.71806292,0.00017999,2]
[347589043,1735932637587,-500.0,0.00017999,2]
[347589045,1735932637596,-215.71891977,0.00017999,2]
[347589046,1735932637606,-500.0,0.00017999,2]
[347589048,1735932637616,-500.0,0.00017999,2]
[347589050,1735932637625,-500.0,0.00017999,2]
[347589052,1735932637634,-100884.58859346,0.00018,2]
[347589054,1735932637644,-281.359202,0.00018083,2]
[347589056,1735932637653,-189.21087546,0.00018325,2]
[347589058,1735932637663,-519.44,0.0001848,2]
[347589061,1735932637672,-160.81233111,0.000185,2]
[347589063,1735932637684,-2064.31699584,0.0001864,2]
[347589065,1735932637693,-189.21087546,0.00018668,2]
[347589067,1735932637702,-635.05785,0.00018741,2]
[347589069,1735932637712,-12011.57945013,0.000188,2]
[347589071,1735932637721,-689.00376506,0.0001881,2]
[347589073,1735932637731,-2426.58659182,0.00019,2]
[347589075,1735932637741,-189.21087546,0.0001901,2]
[347589077,1735932637750,-4889.12466418,0.00019078,2]
[347589079,1735932637760,-57518.99826724,0.00019078,2]
[347589081,1735932637769,-708.74779243,0.00019078,2]
[347589083,1735932637779,-500.0,0.00019173,2]
[347589085,1735932637789,-500.0,0.00019173,2]
[347589087,1735932637798,-500.0,0.00019173,2]
[347589089,1735932637808,-156.6,0.00019177,2]
[347589091,1735932637817,-196.172,0.00019177,2]
[347589094,1735932637827,-500.0,0.00019177,5]
[347589097,1735932637836,-501.73054357,0.00019178,2]
[347589099,1735932637846,-199.6657811,0.00019178,2]
[347589102,1735932637855,-496.08295239,0.00019178,2]
[347589104,1735932637864,-500.0,0.00019178,2]
[347589106,1735932637874,-500.0,0.00019178,2]
[347589108,1735932637884,-500.0,0.00019178,2]
[347589110,1735932637893,-500.0,0.00019178,2]
[347589112,1735932637904,-500.0,0.00019178,2]
[347589114,1735932637914,-500.0,0.00019178,2]
[347589116,1735932637924,-500.0,0.00019178,2]
[347589118,1735932637933,-503.17145217,0.00019178,2]
[347589120,1735932637943,-500.0,0.00019178,2]
[347589122,1735932637952,-500.0,0.00019178,2]
[347589124,1735932637962,-500.0,0.00019178,2]
[347589126,1735932637971,-502.01128024,0.00019178,2]
[347589129,1735932637984,-500.0,0.00019178,2]
[347589132,1735932637994,-200.0,0.00019178,2]
[347589135,1735932638003,-500.0,0.00019178,2]
[347589138,1735932638012,-500.0,0.00019178,2]
[347589141,1735932638023,-500.0,0.00019178,2]
[347589144,1735932638032,-487.2939958,0.00019178,2]
[347589147,1735932638042,-500.0,0.00019178,2]
[347589150,1735932638052,-500.0,0.00019178,2]
[347589153,1735932638061,-374.70637749,0.00019178,2]
[347589156,1735932638071,-500.0,0.00019178,2]
[347589158,1735932638080,-500.0,0.00019178,2]
[347589161,1735932638090,-500.0,0.00019178,2]
[347589165,1735932638099,-500.0,0.00019178,2]
[347589167,1735932638109,-601.6277443,0.00019178,2]
[347589170,1735932638119,-503.47,0.00019178,2]
[347589173,1735932638128,-501.88157086,0.00019178,2]
[347589176,1735932638139,-500.0,0.00019178,2]
[347589179,1735932638149,-500.0,0.00019178,2]
[347589182,1735932638159,-500.0,0.00019178,2]
[347589185,1735932638168,-500.0,0.00019178,2]
[347589188,1735932638179,-501.76165185,0.00019178,2]
[347589191,1735932638189,-500.0,0.00019178,2]
[347589194,1735932638198,-500.0,0.00019178,2]
[347589197,1735932638208,-500.0,0.00019178,2]
[347589200,1735932638218,-500.0,0.00019178,2]
[347589203,1735932638228,-500.0,0.00019178,2]
[347589206,1735932638237,-500.0,0.00019178,2]
[347589209,1735932638246,-500.0,0.00019178,2]
[347589212,1735932638256,-500.0,0.00019178,2]
[347589215,1735932638265,-500.0,0.00019178,2]
[347589218,1735932638275,-500.0,0.00019178,2]
[347589220,1735932638285,-500.0,0.00019178,2]
[347589222,1735932638295,-500.0,0.00019178,2]
[347589224,1735932638304,-500.0,0.00019178,2]
[347589226,1735932638313,-500.0,0.00019178,2]
[347589228,1735932638323,-500.0,0.00019178,2]
[347589230,1735932638332,-500.0,0.00019178,2]
[347589232,1735932638343,-500.0,0.00019178,2]
[347589234,1735932638354,-227.00233238,0.00019178,2]
[347589237,1735932638364,-656.33,0.00019178,2]
[347589239,1735932638374,-500.0,0.00019178,2]
[347589241,1735932638386,-500.0,0.00019178,2]
[347589243,1735932638395,-500.0,0.00019178,2]
[347589245,1735932638405,-612.23,0.00019178,2]
[347589247,1735932638415,-580.66,0.00019178,2]
[347589249,1735932638424,-500.0,0.00019178,2]
[347589251,1735932638435,-500.0,0.00019178,2]
[347589253,1735932638445,-500.0,0.00019178,2]
[347589255,1735932638454,-500.0,0.00019178,2]
[347589257,1735932638463,-500.0,0.00019178,2]
[347589259,1735932638473,-500.0,0.00019178,2]
[347589261,1735932638483,-500.0,0.00019178,2]
[347589263,1735932638492,-500.0,0.00019178,2]
[347589265,1735932638501,-500.0,0.00019178,2]
[347589267,1735932638510,-500.0,0.00019178,2]
[347589269,1735932638519,-500.0,0.00019178,2]
[347589271,1735932638529,-500.0,0.00019178,2]
[347589273,1735932638538,-500.0,0.00019178,2]
[347589275,1735932638548,-500.0,0.00019178,2]
[347589277,1735932638558,-500.0,0.00019178,2]
[347589279,1735932638567,-516.2512424,0.00019178,2]
[347589282,1735932638588,-500.0,0.00019178,2]
[347589284,1735932638598,-500.0,0.00019178,2]
[347589286,1735932638607,-500.0,0.00019178,2]
[347589289,1735932638618,-508.87326687,0.00019178,2]
[347589291,1735932638628,-500.0,0.00019178,2]
[347589293,1735932638638,-500.0,0.00019178,2]
[347589295,1735932638648,-500.0,0.00019178,2]
[347589298,1735932638657,-500.0,0.00019178,2]
[347589300,1735932638667,-864.58,0.00019178,2]
[347589302,1735932638676,-500.0,0.00019178,2]
[347589304,1735932638686,-500.0,0.00019178,2]
[347589306,1735932638696,-500.0,0.00019178,2]
[347589308,1735932638706,-1023.38,0.00019178,2]
[347589311,1735932638716,-500.0,0.00019178,2]
[347589314,1735932638725,-188.99469656,0.00019178,2]
[347589317,1735932638735,-500.0,0.00019178,2]
[347589319,1735932638745,-832.63,0.00019178,2]
[347589322,1735932638756,-500.0,0.00019178,2]
[347589324,1735932638765,-523.55,0.00019178,2]
[347589326,1735932638776,-500.0,0.00019178,2]
[347589328,1735932638786,-500.0,0.00019178,2]
[347589330,1735932638802,-500.0,0.00019178,2]
[347589332,1735932638812,-504.98637078,0.00019178,2]
[347589334,1735932638822,-500.0,0.00019178,2]
[347589336,1735932638831,-500.0,0.00019178,2]
[347589338,1735932638840,-500.0,0.00019178,2]
[347589340,1735932638850,-606.47,0.00019178,2]
[347589342,1735932638859,-500.0,0.00019178,2]
[347589344,1735932638869,-500.0,0.00019178,2]
[347589346,1735932638879,-737.74,0.00019178,2]
[347589348,1735932638890,-500.0,0.00019178,2]
[347589350,1735932638899,-500.0,0.00019178,2]
[347589352,1735932638909,-500.0,0.00019178,2]
[347589354,1735932638918,-500.0,0.00019178,2]
[347589356,1735932638928,-500.0,0.00019178,2]
[347589358,1735932638937,-196.72615854,0.00019178,2]
[347589360,1735932638947,-500.0,0.00019178,2]
[347589362,1735932638957,-500.0,0.00019178,2]
[347589364,1735932638966,-500.0,0.00019178,2]
[347589367,1735932638978,-500.0,0.00019178,2]
[347589369,1735932638990,-534.89940103,0.00019178,2]
[347589371,1735932639000,-500.0,0.00019178,2]
[347589373,1735932639009,-500.0,0.00019178,2]
[347589375,1735932639019,-500.0,0.00019178,2]
[347589377,1735932639031,-344.73453975,0.00019178,2]
[347589379,1735932639043,-500.0,0.00019178,2]
[347589381,1735932639054,-500.0,0.00019178,2]
[347589383,1735932639064,-833.62,0.00019178,2]
[347589385,1735932639074,-500.0,0.00019178,2]
[347589387,1735932639084,-500.0,0.00019178,2]
[347589389,1735932639093,-947.07,0.00019178,2]
[347589391,1735932639103,-500.0,0.00019178,2]
[347589393,1735932639113,-501.00862458,0.00019178,2]
[347589412,1735932639282,-500.0,0.00019178,2]
[347589414,1735932639293,-598.67132735,0.00019178,2]
[347589416,1735932639303,-500.0,0.00019178,2]
[347589418,1735932639312,-7437.04,0.00019178,2]
[347589420,1735932639321,-500.0,0.00019178,2]
[347589422,1735932639331,-569.88788877,0.00019178,2]
[347589424,1735932639340,-883.27,0.00019178,2]
[347589426,1735932639349,-1092.99,0.00019178,2]
[347589428,1735932639359,-500.0,0.00019178,2]
[347589430,1735932639368,-500.0,0.00019178,2]
[347589432,1735932639377,-500.0,0.00019178,2]
[347589434,1735932639388,-2480.81,0.00019178,2]
[347589436,1735932639397,-500.0,0.00019178,2]
[347589438,1735932639407,-500.0,0.00019178,2]
[347589440,1735932639417,-500.0,0.00019178,2]
[347589442,1735932639426,-572.02,0.00019178,2]
[347589444,1735932639436,-618.24,0.00019178,2]
[347589446,1735932639447,-500.0,0.00019178,2]
[347589448,1735932639456,-500.0,0.00019178,2]
[347589450,1735932639467,-500.0,0.00019178,2]
[347589452,1735932639476,-500.0,0.00019178,2]
[347589454,1735932639486,-663.56,0.00019178,2]
[347589457,1735932639496,-500.0,0.00019178,2]
[347589458,1735932639503,-500.0,0.00019178,2]
[347589460,1735932639511,-500.0,0.00019178,2]
[347589462,1735932639521,-500.0,0.00019178,2]
[347589465,1735932639529,-500.0,0.00019178,2]
[347589466,1735932639537,-755.6,0.00019178,2]
[347589468,1735932639545,-500.0,0.00019178,2]
[347589471,1735932639555,-500.0,0.00019178,2]
[347589473,1735932639564,-500.0,0.00019178,2]
[347589475,1735932639575,-500.0,0.00019178,2]
[347589477,1735932639584,-500.0,0.00019178,2]
[347589479,1735932639593,-35698.66,0.00019178,2]
[347589482,1735932639603,-513.8,0.00019178,2]
[347589484,1735932639612,-1101.05,0.00019178,2]
[347589486,1735932639620,-500.0,0.00019178,2]
[347589488,1735932639629,-500.0,0.00019178,2]
[347589490,1735932639639,-500.0,0.00019178,2]
[347589492,1735932639649,-500.0,0.00019178,2]
[347589494,1735932639658,-1515.55,0.00019178,2]
[347589496,1735932639666,-953.73,0.00019178,2]
[347589498,1735932639673,-500.0,0.00019178,2]
[347589500,1735932639680,-500.0,0.00019178,2]
[347589502,1735932639689,-5331.84,0.00019178,2]
[347589504,1735932639698,-500.0,0.00019178,2]
[347589506,1735932639706,-1341.36,0.00019178,2]
[347589508,1735932639714,-1562.44,0.00019178,2]
[347589510,1735932639723,-4436.16,0.00019178,2]
[347589512,1735932639731,-500.0,0.00019178,2]
[347589514,1735932639738,-1392.99,0.00019178,2]
[347589516,1735932639747,-500.0,0.00019178,2]
[347589519,1735932639757,-500.0,0.00019178,2]
[347589521,1735932639765,-500.0,0.00019178,2]
[347589523,1735932639773,-4071.96,0.00019178,2]
[347589526,1735932639783,-500.0,0.00019178,2]
[347589527,1735932639792,-500.0,0.00019178,2]
[347589529,1735932639801,-500.0,0.00019178,2]
[347589531,1735932639811,-500.0,0.00019178,2]
[347589533,1735932639820,-500.0,0.00019178,2]
[347589535,1735932639829,-500.0,0.00019178,2]
[347589537,1735932639838,-500.0,0.00019178,2]
[347589539,1735932639847,-500.0,0.00019178,2]
[347589541,1735932639857,-500.0,0.00019178,2]
[347589544,1735932639866,-1475.06,0.00019178,2]
[347589546,1735932639874,-500.0,0.00019178,2]
[347589548,1735932639884,-500.0,0.00019178,2]
[347589550,1735932639892,-500.0,0.00019178,2]
[347589552,1735932639901,-500.0,0.00019178,2]
[347589554,1735932639908,-500.0,0.00019178,2]
[347589556,1735932639918,-500.0,0.00019178,2]
[347589558,1735932639925,-500.0,0.00019178,2]
[347589560,1735932639933,-500.0,0.00019178,2]
[347589562,1735932639943,-504.82577553,0.00019178,2]
[347589563,1735932639953,-500.0,0.00019178,2]
[347589564,1735932639962,-500.0,0.00019178,2]
[347589565,1735932639972,-502.86984367,0.00019178,2]
[347589566,1735932639983,-500.0,0.00019178,2]
[347589569,1735932639993,-989.54,0.00019178,2]
[347589570,1735932640002,-500.0,0.00019178,2]
[347589571,1735932640012,-500.0,0.00019178,2]
[347589572,1735932640021,-2109.39,0.00019178,2]
[347589573,1735932640032,-979.57,0.00019178,2]
[347589574,1735932640042,-500.0,0.00019178,2]
[347589575,1735932640053,-500.0,0.00019178,2]
[347589576,1735932640062,-1243.45,0.00019178,2]
[347589577,1735932640071,-500.0,0.00019178,2]
[347589579,1735932640080,-528.88,0.00019178,2]
[347589580,1735932640089,-500.0,0.00019178,2]
[347589582,1735932640100,-264.72075846,0.00019178,2]
[347589584,1735932640109,-500.0,0.00019178,2]
[347589587,1735932640118,-500.0,0.00019178,2]
[347589589,1735932640127,-1103.73,0.00019178,2]
[347589590,1735932640135,-782.72,0.00019178,2]
[347589592,1735932640143,-266.64130418,0.00019178,2]
[347589594,1735932640152,-500.0,0.00019178,2]
[347589597,1735932640162,-798.24,0.00019178,2]
[347589599,1735932640170,-500.0,0.00019178,2]
[347589600,1735932640178,-500.0,0.00019178,2]
[347589602,1735932640187,-502.38232748,0.00019178,2]
[347589604,1735932640195,-500.0,0.00019178,2]
[347589606,1735932640203,-631.15,0.00019178,2]
[347589608,1735932640211,-500.0,0.00019178,2]
[347589610,1735932640220,-500.0,0.00019178,2]
[347589613,1735932640229,-500.0,0.00019178,2]
[347589615,1735932640238,-645.75,0.00019178,2]
[347589617,1735932640247,-3625.23,0.00019178,2]
[347589619,1735932640257,-1674.26,0.00019178,2]
[347589620,1735932640265,-500.0,0.00019178,2]
[347589622,1735932640273,-516.15,0.00019178,2]
[347589624,1735932640282,-524.36,0.00019178,2]
[347589626,1735932640291,-2761.88,0.00019178,2]
[347589628,1735932640299,-500.0,0.00019178,2]
[347589630,1735932640308,-500.0,0.00019178,2]
[347589632,1735932640315,-2417.19,0.00019178,2]
[347589634,1735932640323,-151.0,0.00019178,2]
[347589636,1735932640332,-500.0,0.00019178,2]
[347589638,1735932640340,-500.0,0.00019178,2]
[347589640,1735932640348,-1230.59,0.00019178,2]
[347589642,1735932640357,-500.0,0.00019178,2]
[347589644,1735932640366,-501.03121736,0.00019178,2]
[347589646,1735932640375,-500.0,0.00019178,2]
[347589648,1735932640384,-500.0,0.00019178,2]
[347589650,1735932640392,-500.0,0.00019178,2]
[347589652,1735932640401,-500.0,0.00019178,2]
[347589654,1735932640409,-500.0,0.00019178,2]
[347589656,1735932640417,-151.0,0.00019178,2]
[347589658,1735932640426,-1042.13,0.00019178,2]
[347589660,1735932640435,-1002.59,0.00019178,2]
[347589661,1735932640442,-500.0,0.00019178,2]
[347589663,1735932640450,-500.0,0.00019178,2]
[347589665,1735932640460,-500.0,0.00019178,2]
[347589667,1735932640469,-158.797415,0.00019178,2]
[347589670,1735932640478,-377.6494586,0.00019257,2]
[347589672,1735932640487,-189.21087546,0.00019352,2]
[347589674,1735932640496,-500.0,0.00019451,3]
[347589676,1735932640506,-502.84796894,0.00019451,3]